[Event "*** Titled Tuesday Blitz"]
[Site "Chess.com"]
[Date "2021.03.09"]
[Round "6"]
[White "Hikaru"]
[Black "Elshan1985"]
[Result "1-0"]
[WhiteElo "3170"]
[BlackElo "2885"]
[TimeControl "180+1"]
[EndTime "11:08:24 PST"]
[Termination "Hikaru won by resignation"]

1. Nf3 {[%clk 0:03:00.9]} 1... d5 {[%clk 0:02:58.2]} 2. e3 {[%clk 0:02:58.8]}
2... g6 {[%clk 0:02:57.2]} 3. c4 {[%clk 0:02:58.4]} 3... e6 {[%clk 0:02:56.1]}
4. d4 {[%clk 0:02:55.7]} 4... Bg7 {[%clk 0:02:56.2]} 5. Nc3 {[%clk 0:02:56.2]}
5... Ne7 {[%clk 0:02:56.5]} 6. cxd5 {[%clk 0:02:49.7]} 6... exd5 {[%clk
0:02:55.9]} 7. g3 {[%clk 0:02:48]} 7... O-O {[%clk 0:02:50.3]} 8. Bg2 {[%clk
0:02:44.5]} 8... c6 {[%clk 0:02:50.5]} 9. O-O {[%clk 0:02:44.2]} 9... a5 {[%clk
0:02:50.5]} 10. Ne1 {[%clk 0:02:40.8]} 10... Na6 {[%clk 0:02:49.4]} 11. a3
{[%clk 0:02:39.7]} 11... Be6 {[%clk 0:02:45.3]} 12. Nd3 {[%clk 0:02:39.5]} 12...
Nf5 {[%clk 0:02:40.2]} 13. Bd2 {[%clk 0:02:31.9]} 13... Nd6 {[%clk 0:02:39.2]}
14. b3 {[%clk 0:02:32.4]} 14... Bf5 {[%clk 0:02:38.4]} 15. Be1 {[%clk
0:02:28.1]} 15... Re8 {[%clk 0:02:36.4]} 16. Rc1 {[%clk 0:02:26.7]} 16... Ne4
{[%clk 0:02:28.9]} 17. Nxe4 {[%clk 0:02:19.1]} 17... Bxe4 {[%clk 0:02:29.2]} 18.
Bh3 {[%clk 0:02:18.5]} 18... Bf8 {[%clk 0:02:28.2]} 19. Ra1 {[%clk 0:02:15.4]}
19... Qg5 {[%clk 0:02:19.9]} 20. Ne5 {[%clk 0:02:07.4]} 20... Nc7 {[%clk
0:02:08.5]} 21. Bd2 {[%clk 0:01:56.6]} 21... Qh6 {[%clk 0:01:58.7]} 22. Bd7
{[%clk 0:01:50]} 22... Re7 {[%clk 0:01:35.7]} 23. f3 {[%clk 0:01:42.4]} 23...
Rxd7 {[%clk 0:00:58.6]} 24. Nxd7 {[%clk 0:01:22.7]} 24... Bd3 {[%clk 0:00:58.6]}
25. Rf2 {[%clk 0:01:23]} 25... Qh3 {[%clk 0:00:53.7]} 26. Nxf8 {[%clk
0:01:20.2]} 26... Rxf8 {[%clk 0:00:52.4]} 27. Bxa5 {[%clk 0:01:20.2]} 27... Ne6
{[%clk 0:00:52.3]} 28. Qxd3 {[%clk 0:01:19.9]} 1-0

[Event "*** Titled Tuesday Blitz"]
[Site "Chess.com"]
[Date "2021.03.09"]
[Round "6"]
[White "GOGIEFF"]
[Black "BeanScreen"]
[Result "1-0"]
[WhiteElo "2880"]
[BlackElo "2680"]
[TimeControl "180+1"]
[EndTime "11:08:28 PST"]
[Termination "GOGIEFF won by resignation"]

1. d4 {[%clk 0:03:00.9]} 1... d5 {[%clk 0:02:59.9]} 2. c4 {[%clk 0:03:00.3]}
2... dxc4 {[%clk 0:03:00.8]} 3. e4 {[%clk 0:03:00]} 3... c5 {[%clk 0:03:00.7]}
4. d5 {[%clk 0:02:59.9]} 4... e6 {[%clk 0:03:01]} 5. Bxc4 {[%clk 0:02:57]} 5...
exd5 {[%clk 0:03:01]} 6. Bxd5 {[%clk 0:02:51.5]} 6... Bd6 {[%clk 0:03:00.3]} 7.
e5 {[%clk 0:02:39.6]} 7... Bc7 {[%clk 0:03:00.1]} 8. Qb3 {[%clk 0:02:34.3]} 8...
Qe7 {[%clk 0:02:59.3]} 9. Nf3 {[%clk 0:02:33.7]} 9... Nc6 {[%clk 0:02:45.5]} 10.
O-O {[%clk 0:02:32]} 10... Nb4 {[%clk 0:02:14]} 11. Bg5 {[%clk 0:02:25]} 11...
Qd7 {[%clk 0:01:58]} 12. Nc3 {[%clk 0:02:23.4]} 12... Nxd5 {[%clk 0:01:52.8]}
13. Nxd5 {[%clk 0:02:21.4]} 13... Qc6 {[%clk 0:01:48.5]} 14. Nd4 {[%clk
0:02:10.2]} 14... Qd7 {[%clk 0:01:02.2]} 15. Nb5 {[%clk 0:02:02]} 15... Bd8
{[%clk 0:01:02.4]} 16. Bxd8 {[%clk 0:01:52.5]} 16... Qxd8 {[%clk 0:00:58.8]} 17.
Ndc7+ {[%clk 0:01:43.7]} 17... Kf8 {[%clk 0:00:58.2]} 18. Rad1 {[%clk 0:01:41]}
18... Qe7 {[%clk 0:00:47.8]} 19. Nxa8 {[%clk 0:01:40.9]} 19... Be6 {[%clk
0:00:47.4]} 20. Qa3 {[%clk 0:01:37.4]} 20... b6 {[%clk 0:00:46.4]} 21. Nxb6
{[%clk 0:01:31.5]} 21... Nh6 {[%clk 0:00:37.2]} 22. Nd5 {[%clk 0:01:28.2]} 22...
Bxd5 {[%clk 0:00:34.4]} 23. Rxd5 {[%clk 0:01:29.1]} 1-0

[Event "*** Titled Tuesday Blitz"]
[Site "Chess.com"]
[Date "2021.03.09"]
[Round "6"]
[White "bakki78"]
[Black "Trankuilizer"]
[Result "1-0"]
[WhiteElo "2779"]
[BlackElo "2581"]
[TimeControl "180+1"]
[EndTime "11:08:28 PST"]
[Termination "bakki78 won by resignation"]

1. e4 {[%clk 0:03:00.9]} 1... d6 {[%clk 0:02:55.4]} 2. d4 {[%clk 0:02:59.9]}
2... Nf6 {[%clk 0:02:55.6]} 3. Nc3 {[%clk 0:03:00]} 3... g6 {[%clk 0:02:55.6]}
4. f4 {[%clk 0:02:59]} 4... Bg7 {[%clk 0:02:55.7]} 5. Bd3 {[%clk 0:02:56.7]}
5... O-O {[%clk 0:02:56.1]} 6. e5 {[%clk 0:02:56.2]} 6... dxe5 {[%clk
0:02:51.2]} 7. dxe5 {[%clk 0:02:47.3]} 7... Nd5 {[%clk 0:02:51.4]} 8. Nxd5
{[%clk 0:02:47.5]} 8... Qxd5 {[%clk 0:02:52.3]} 9. Qe2 {[%clk 0:02:46.5]} 9...
Nc6 {[%clk 0:02:49.5]} 10. Nf3 {[%clk 0:02:46.5]} 10... Bg4 {[%clk 0:02:47.3]}
11. Be4 {[%clk 0:02:39.5]} 11... Qc5 {[%clk 0:02:43]} 12. c3 {[%clk 0:02:32.6]}
12... e6 {[%clk 0:01:54]} 13. Be3 {[%clk 0:02:26.4]} 13... Qe7 {[%clk
0:01:54.1]} 14. O-O-O {[%clk 0:02:21]} 14... Rfd8 {[%clk 0:01:53.4]} 15. h3
{[%clk 0:02:15.4]} 15... Bf5 {[%clk 0:01:52.5]} 16. Bxc6 {[%clk 0:02:08]} 16...
bxc6 {[%clk 0:01:51.3]} 17. Bf2 {[%clk 0:02:08.7]} 17... Rd5 {[%clk 0:01:26.6]}
18. g4 {[%clk 0:02:06.1]} 18... Ra5 {[%clk 0:01:06.7]} 19. gxf5 {[%clk
0:01:59.7]} 19... exf5 {[%clk 0:00:49.4]} 20. Qc4 {[%clk 0:01:55.8]} 20... Rb8
{[%clk 0:00:43.5]} 21. Nd4 {[%clk 0:01:47]} 1-0

[Event "*** Titled Tuesday Blitz"]
[Site "Chess.com"]
[Date "2021.03.09"]
[Round "6"]
[White "rachidhuilda"]
[Black "FMOlexandrProhorov"]
[Result "1-0"]
[WhiteElo "2282"]
[BlackElo "2105"]
[TimeControl "180+1"]
[EndTime "11:08:28 PST"]
[Termination "rachidhuilda won by resignation"]

1. d4 {[%clk 0:03:00.9]} 1... Nf6 {[%clk 0:02:58.8]} 2. Bg5 {[%clk 0:02:59]}
2... c5 {[%clk 0:02:58.3]} 3. d5 {[%clk 0:02:55.7]} 3... Qb6 {[%clk 0:02:58.4]}
4. Nc3 {[%clk 0:02:54.9]} 4... Qxb2 {[%clk 0:02:49.4]} 5. Bd2 {[%clk 0:02:54.3]}
5... Qb6 {[%clk 0:02:47.1]} 6. e4 {[%clk 0:02:51.3]} 6... d6 {[%clk 0:02:47.3]}
7. f4 {[%clk 0:02:49.8]} 7... Bg4 {[%clk 0:02:43.5]} 8. Be2 {[%clk 0:02:49.6]}
8... Bxe2 {[%clk 0:02:43]} 9. Qxe2 {[%clk 0:02:50.1]} 9... Qd8 {[%clk
0:02:25.6]} 10. Rb1 {[%clk 0:02:41.3]} 10... b6 {[%clk 0:02:23.5]} 11. e5 {[%clk
0:02:19.5]} 11... dxe5 {[%clk 0:02:22.9]} 12. fxe5 {[%clk 0:02:17.3]} 12... Nxd5
{[%clk 0:02:19]} 13. Qb5+ {[%clk 0:02:12.9]} 13... Nd7 {[%clk 0:01:14.3]} 14.
Nxd5 {[%clk 0:02:10.9]} 14... e6 {[%clk 0:01:14.7]} 15. Nc3 {[%clk 0:02:05.7]}
15... Be7 {[%clk 0:01:15.1]} 16. Nf3 {[%clk 0:02:04.4]} 16... O-O {[%clk
0:01:16]} 17. Qe2 {[%clk 0:01:54.5]} 17... a6 {[%clk 0:01:16.9]} 18. O-O {[%clk
0:01:51.4]} 18... b5 {[%clk 0:01:15.6]} 19. Rbe1 {[%clk 0:01:31.4]} 19... Qc7
{[%clk 0:01:15.3]} 20. Bg5 {[%clk 0:01:25.3]} 20... Nb6 {[%clk 0:01:14.8]} 21.
Bxe7 {[%clk 0:01:23.9]} 21... Qxe7 {[%clk 0:01:15.7]} 22. Ne4 {[%clk 0:01:17.5]}
22... Nc4 {[%clk 0:01:14.6]} 23. Rd1 {[%clk 0:01:03.7]} 23... h6 {[%clk
0:01:12.1]} 24. Nd6 {[%clk 0:01:02.1]} 24... Ra7 {[%clk 0:01:08.1]} 25. Nxc4
{[%clk 0:01:01.6]} 1-0

[Event "*** Titled Tuesday Blitz"]
[Site "Chess.com"]
[Date "2021.03.09"]
[Round "6"]
[White "Nozdrachev_Leonid"]
[Black "barbara25"]
[Result "1/2-1/2"]
[WhiteElo "2530"]
[BlackElo "2291"]
[TimeControl "180+1"]
[EndTime "11:08:33 PST"]
[Termination "Game drawn by repetition"]

1. e4 {[%clk 0:03:00.9]} 1... c5 {[%clk 0:02:59.6]} 2. c3 {[%clk 0:02:56.1]}
2... d5 {[%clk 0:02:59.3]} 3. exd5 {[%clk 0:02:55.7]} 3... Qxd5 {[%clk
0:03:00.2]} 4. d4 {[%clk 0:02:55.8]} 4... cxd4 {[%clk 0:03:00.5]} 5. cxd4 {[%clk
0:02:55.4]} 5... e6 {[%clk 0:03:00.8]} 6. Nf3 {[%clk 0:02:53.4]} 6... Nf6 {[%clk
0:02:59.8]} 7. Bd3 {[%clk 0:02:53.3]} 7... Bb4+ {[%clk 0:02:59.8]} 8. Bd2 {[%clk
0:02:48.9]} 8... Bxd2+ {[%clk 0:02:58.9]} 9. Qxd2 {[%clk 0:02:49.8]} 9... O-O
{[%clk 0:02:59.1]} 10. Nc3 {[%clk 0:02:49.2]} 10... Qd8 {[%clk 0:02:58.2]} 11.
O-O {[%clk 0:02:48.7]} 11... b6 {[%clk 0:02:58.6]} 12. Rad1 {[%clk 0:02:45.9]}
12... Ba6 {[%clk 0:02:58.3]} 13. Qf4 {[%clk 0:02:38.9]} 13... Bxd3 {[%clk
0:02:57.9]} 14. Rxd3 {[%clk 0:02:39.8]} 14... Nc6 {[%clk 0:02:56.3]} 15. Ne5
{[%clk 0:02:23.4]} 15... Ne7 {[%clk 0:02:56.2]} 16. Rh3 {[%clk 0:02:19.5]} 16...
Ng6 {[%clk 0:02:55.1]} 17. Nxg6 {[%clk 0:02:18.1]} 17... fxg6 {[%clk 0:02:55.3]}
18. Qe5 {[%clk 0:02:13.2]} 18... Qd7 {[%clk 0:02:52]} 19. Re3 {[%clk 0:02:08.2]}
19... Rae8 {[%clk 0:02:50.1]} 20. h3 {[%clk 0:02:07.7]} 20... Nd5 {[%clk
0:02:46.1]} 21. Nxd5 {[%clk 0:02:06.9]} 21... exd5 {[%clk 0:02:46.4]} 22. Qg5
{[%clk 0:02:03.8]} 22... Rxe3 {[%clk 0:02:46]} 23. fxe3 {[%clk 0:02:00.3]} 23...
Rxf1+ {[%clk 0:02:42.5]} 24. Kxf1 {[%clk 0:02:01.2]} 24... Qf5+ {[%clk
0:02:42.8]} 25. Qf4 {[%clk 0:01:33.9]} 25... Qb1+ {[%clk 0:02:40.8]} 26. Kf2
{[%clk 0:01:28.4]} 26... Qxb2+ {[%clk 0:02:41.1]} 27. Kg3 {[%clk 0:01:28.5]}
27... Qxa2 {[%clk 0:02:40.6]} 28. Qb8+ {[%clk 0:01:24.3]} 28... Kf7 {[%clk
0:02:40.8]} 29. Qc7+ {[%clk 0:01:23.4]} 29... Kf8 {[%clk 0:02:39.9]} 30. Qd6+
{[%clk 0:01:22.6]} 30... Kf7 {[%clk 0:02:40.2]} 31. Qd7+ {[%clk 0:01:21]} 31...
Kf8 {[%clk 0:02:40.5]} 32. Qd6+ {[%clk 0:01:17.5]} 32... Kf7 {[%clk 0:02:40.7]}
33. e4 {[%clk 0:00:55.3]} 33... dxe4 {[%clk 0:02:32.1]} 34. d5 {[%clk
0:00:54.4]} 34... e3 {[%clk 0:02:21.1]} 35. Qd7+ {[%clk 0:00:45.5]} 35... Kf8
{[%clk 0:02:20.4]} 36. Qd6+ {[%clk 0:00:36.4]} 36... Kf7 {[%clk 0:02:20.4]} 37.
Qe6+ {[%clk 0:00:32.8]} 37... Kf8 {[%clk 0:02:19.9]} 38. Qc8+ {[%clk 0:00:29]}
38... Kf7 {[%clk 0:02:18.2]} 39. Qe6+ {[%clk 0:00:26]} 39... Kf8 {[%clk
0:02:17.9]} 40. Qc8+ {[%clk 0:00:25.4]} 40... Kf7 {[%clk 0:02:18.2]} 41. Qe6+
{[%clk 0:00:25]} 1/2-1/2

[Event "*** Titled Tuesday Blitz"]
[Site "Chess.com"]
[Date "2021.03.09"]
[Round "6"]
[White "AttackSparrow"]
[Black "Sagar_Raina"]
[Result "1-0"]
[WhiteElo "2536"]
[BlackElo "2283"]
[TimeControl "180+1"]
[EndTime "11:08:35 PST"]
[Termination "AttackSparrow won on time"]

1. e4 {[%clk 0:03:00.9]} 1... c6 {[%clk 0:02:58.8]} 2. d4 {[%clk 0:03:00.6]}
2... d5 {[%clk 0:02:58.7]} 3. exd5 {[%clk 0:03:01.5]} 3... cxd5 {[%clk
0:02:58.5]} 4. c4 {[%clk 0:02:59.5]} 4... Nf6 {[%clk 0:02:58]} 5. Nc3 {[%clk
0:02:55.6]} 5... Nc6 {[%clk 0:02:57.7]} 6. Bg5 {[%clk 0:02:53.7]} 6... Ne4
{[%clk 0:02:56.5]} 7. Nf3 {[%clk 0:02:51.2]} 7... Nxg5 {[%clk 0:02:33.6]} 8.
Nxg5 {[%clk 0:02:52.1]} 8... e6 {[%clk 0:02:17.4]} 9. Nf3 {[%clk 0:02:45.3]}
9... Bb4 {[%clk 0:02:15.9]} 10. cxd5 {[%clk 0:02:43.3]} 10... Qxd5 {[%clk
0:02:14]} 11. Bd3 {[%clk 0:02:42.9]} 11... O-O {[%clk 0:02:03.1]} 12. O-O {[%clk
0:02:42.8]} 12... Qh5 {[%clk 0:02:02.2]} 13. a3 {[%clk 0:02:39.3]} 13... Bd6
{[%clk 0:01:59.7]} 14. h3 {[%clk 0:02:37]} 14... b6 {[%clk 0:01:49.4]} 15. Be4
{[%clk 0:02:04.5]} 15... Bb7 {[%clk 0:01:38.4]} 16. d5 {[%clk 0:02:04.5]} 16...
exd5 {[%clk 0:01:30.9]} 17. Qxd5 {[%clk 0:02:05.2]} 17... Qh6 {[%clk 0:01:04.8]}
18. Rad1 {[%clk 0:01:59.3]} 18... Rad8 {[%clk 0:01:03.7]} 19. Qg5 {[%clk
0:01:46.7]} 1-0

[Event "*** Titled Tuesday Blitz"]
[Site "Chess.com"]
[Date "2021.03.09"]
[Round "6"]
[White "HackingKid98"]
[Black "Kale36"]
[Result "1-0"]
[WhiteElo "2459"]
[BlackElo "2311"]
[TimeControl "180+1"]
[EndTime "11:08:41 PST"]
[Termination "HackingKid98 won by resignation"]

1. c4 {[%clk 0:03:00.9]} 1... Nc6 {[%clk 0:02:59.3]} 2. d4 {[%clk 0:02:58.6]}
2... e5 {[%clk 0:02:59.3]} 3. dxe5 {[%clk 0:02:51.3]} 3... Nxe5 {[%clk
0:02:59.3]} 4. e3 {[%clk 0:02:51.4]} 4... Bb4+ {[%clk 0:02:58]} 5. Bd2 {[%clk
0:02:50.5]} 5... Qe7 {[%clk 0:02:57.5]} 6. Bxb4 {[%clk 0:02:48.6]} 6... Qxb4+
{[%clk 0:02:56.9]} 7. Qd2 {[%clk 0:02:49.5]} 7... a5 {[%clk 0:02:47.7]} 8. b3
{[%clk 0:02:42]} 8... Nf6 {[%clk 0:02:43.6]} 9. Nc3 {[%clk 0:02:36.5]} 9... O-O
{[%clk 0:02:38.1]} 10. Nf3 {[%clk 0:02:36.4]} 10... Nxf3+ {[%clk 0:02:37.2]} 11.
gxf3 {[%clk 0:02:37.3]} 11... b6 {[%clk 0:02:28.9]} 12. Bg2 {[%clk 0:02:36.4]}
12... Bb7 {[%clk 0:02:28.8]} 13. O-O {[%clk 0:02:36.2]} 13... d5 {[%clk
0:02:24.7]} 14. f4 {[%clk 0:02:29.2]} 14... Rad8 {[%clk 0:02:19.6]} 15. Rad1
{[%clk 0:02:24.8]} 15... c6 {[%clk 0:01:17]} 16. cxd5 {[%clk 0:02:22.8]} 16...
cxd5 {[%clk 0:01:13.5]} 17. Ne2 {[%clk 0:02:20.3]} 17... Qxd2 {[%clk 0:01:07.7]}
18. Rxd2 {[%clk 0:02:21.2]} 18... Ne4 {[%clk 0:01:08]} 19. Bxe4 {[%clk
0:02:19.5]} 19... dxe4 {[%clk 0:01:07.6]} 20. Rfd1 {[%clk 0:02:19.3]} 20... Rc8
{[%clk 0:00:58.6]} 21. Rd6 {[%clk 0:02:01.6]} 21... Rc6 {[%clk 0:00:51.7]} 22.
Rxc6 {[%clk 0:02:00.4]} 22... Bxc6 {[%clk 0:00:52.1]} 23. Rd6 {[%clk 0:02:01.3]}
23... Bb5 {[%clk 0:00:33.2]} 24. Nd4 {[%clk 0:02:00.5]} 24... Bd3 {[%clk
0:00:31.6]} 25. Rxb6 {[%clk 0:01:58.9]} 25... a4 {[%clk 0:00:30.8]} 26. bxa4
{[%clk 0:01:57.9]} 26... Ra8 {[%clk 0:00:30.8]} 27. f5 {[%clk 0:01:52.2]} 27...
h5 {[%clk 0:00:28.6]} 28. Rb4 {[%clk 0:01:49.1]} 28... Rc8 {[%clk 0:00:28.4]}
29. Kg2 {[%clk 0:01:47.4]} 29... Rc2 {[%clk 0:00:26.9]} 30. Nxc2 {[%clk
0:01:43.9]} 1-0

[Event "*** Titled Tuesday Blitz"]
[Site "Chess.com"]
[Date "2021.03.09"]
[Round "6"]
[White "Chesspirate_Channel"]
[Black "eldur16"]
[Result "1-0"]
[WhiteElo "2412"]
[BlackElo "2556"]
[TimeControl "180+1"]
[EndTime "11:08:45 PST"]
[Termination "Chesspirate_Channel won by resignation"]

1. d4 {[%clk 0:03:00.9]} 1... d6 {[%clk 0:02:59.5]} 2. Nc3 {[%clk 0:03:01.4]}
2... g6 {[%clk 0:02:56.8]} 3. e4 {[%clk 0:03:00]} 3... Bg7 {[%clk 0:02:56.8]} 4.
Nf3 {[%clk 0:02:59.4]} 4... a6 {[%clk 0:02:55.4]} 5. Bd3 {[%clk 0:02:58.2]} 5...
b5 {[%clk 0:02:54.6]} 6. e5 {[%clk 0:02:56.3]} 6... Bb7 {[%clk 0:02:53.7]} 7.
Bf4 {[%clk 0:02:45.9]} 7... Nd7 {[%clk 0:02:52.2]} 8. Qe2 {[%clk 0:02:46]} 8...
dxe5 {[%clk 0:02:45.6]} 9. dxe5 {[%clk 0:02:46.9]} 9... Nc5 {[%clk 0:02:44.2]}
10. O-O-O {[%clk 0:02:46.1]} 10... Qc8 {[%clk 0:02:40.4]} 11. Be4 {[%clk
0:02:38.5]} 11... Nxe4 {[%clk 0:02:35.6]} 12. Nxe4 {[%clk 0:02:39.4]} 12... Nh6
{[%clk 0:02:30.7]} 13. Nf6+ {[%clk 0:02:39.3]} 13... Kf8 {[%clk 0:02:25.5]} 14.
Nd7+ {[%clk 0:02:09.1]} 14... Kg8 {[%clk 0:02:24.7]} 15. e6 {[%clk 0:02:09]}
15... f5 {[%clk 0:02:12]} 16. Kb1 {[%clk 0:01:57.9]} 16... Ng4 {[%clk
0:02:08.6]} 17. Rhe1 {[%clk 0:01:30.5]} 17... h6 {[%clk 0:02:06.2]} 18. Nfe5
{[%clk 0:01:29.3]} 18... Nxe5 {[%clk 0:01:57.5]} 19. Bxe5 {[%clk 0:01:29.1]}
19... Kh7 {[%clk 0:01:35.5]} 20. Bxg7 {[%clk 0:01:26.7]} 20... Kxg7 {[%clk
0:01:35]} 21. Qe5+ {[%clk 0:01:24.1]} 21... Kh7 {[%clk 0:01:35]} 22. Nf6+ {[%clk
0:01:24.3]} 22... exf6 {[%clk 0:01:25.8]} 23. Qxf6 {[%clk 0:01:24.2]} 23... Rd8
{[%clk 0:01:22.4]} 24. Qf7+ {[%clk 0:01:20.7]} 24... Kh8 {[%clk 0:01:21.8]} 25.
Rd7 {[%clk 0:01:21.4]} 25... Rxd7 {[%clk 0:01:14.9]} 26. exd7 {[%clk 0:01:22.3]}
26... Qg8 {[%clk 0:01:09.4]} 27. Re8 {[%clk 0:01:22]} 27... Bc6 {[%clk 0:00:53]}
28. Qf6+ {[%clk 0:01:11.2]} 28... Kh7 {[%clk 0:00:51.8]} 29. Re7+ {[%clk
0:01:11.2]} 1-0

[Event "*** Titled Tuesday Blitz"]
[Site "Chess.com"]
[Date "2021.03.09"]
[Round "6"]
[White "kinga2008"]
[Black "chesslh19"]
[Result "1-0"]
[WhiteElo "2103"]
[BlackElo "2268"]
[TimeControl "180+1"]
[EndTime "11:08:49 PST"]
[Termination "kinga2008 won on time"]

1. d4 {[%clk 0:03:00.9]} 1... Nf6 {[%clk 0:02:49.8]} 2. Nf3 {[%clk 0:03:01.8]}
2... d5 {[%clk 0:02:49.4]} 3. c4 {[%clk 0:03:02.7]} 3... e6 {[%clk 0:02:49.2]}
4. g3 {[%clk 0:03:03.6]} 4... Be7 {[%clk 0:02:49]} 5. Bg2 {[%clk 0:03:04.5]}
5... O-O {[%clk 0:02:48.9]} 6. O-O {[%clk 0:03:05.4]} 6... dxc4 {[%clk
0:02:48.5]} 7. Qc2 {[%clk 0:03:05]} 7... a6 {[%clk 0:02:48.7]} 8. Qxc4 {[%clk
0:03:04.6]} 8... b5 {[%clk 0:02:49.3]} 9. Qc2 {[%clk 0:03:05.5]} 9... Bb7 {[%clk
0:02:49.8]} 10. Bf4 {[%clk 0:03:06.4]} 10... Bd6 {[%clk 0:02:36.3]} 11. Nc3
{[%clk 0:03:04.4]} 11... Bxf4 {[%clk 0:02:17.8]} 12. gxf4 {[%clk 0:03:05.3]}
12... Qd6 {[%clk 0:01:59.6]} 13. e3 {[%clk 0:03:04.8]} 13... Nbd7 {[%clk
0:01:54.5]} 14. Rfd1 {[%clk 0:03:03.9]} 14... Rac8 {[%clk 0:01:18.1]} 15. Ne5
{[%clk 0:03:01.5]} 15... Bxg2 {[%clk 0:01:15.6]} 16. Kxg2 {[%clk 0:02:58.6]}
16... Qb6 {[%clk 0:01:07.8]} 17. Rac1 {[%clk 0:02:53.4]} 17... Qb7+ {[%clk
0:01:01.9]} 18. f3 {[%clk 0:02:52.6]} 18... c5 {[%clk 0:00:55.3]} 19. Nxd7
{[%clk 0:02:49.4]} 19... Nxd7 {[%clk 0:00:55.5]} 20. d5 {[%clk 0:02:42.3]} 20...
b4 {[%clk 0:00:51.1]} 21. Ne4 {[%clk 0:02:42]} 21... exd5 {[%clk 0:00:46.8]} 22.
Nd6 {[%clk 0:02:42.2]} 22... Qc6 {[%clk 0:00:36.1]} 23. Nxc8 {[%clk 0:02:42]}
23... Rxc8 {[%clk 0:00:36.7]} 24. Qd3 {[%clk 0:02:19.8]} 24... Nf6 {[%clk
0:00:29.1]} 25. Rc2 {[%clk 0:02:19.4]} 25... Qb5 {[%clk 0:00:23]} 26. Qxb5
{[%clk 0:01:57.5]} 26... axb5 {[%clk 0:00:23.9]} 27. Kf2 {[%clk 0:01:58]} 27...
Kf8 {[%clk 0:00:23.6]} 28. a3 {[%clk 0:01:53.8]} 1-0

[Event "*** Titled Tuesday Blitz"]
[Site "Chess.com"]
[Date "2021.03.09"]
[Round "6"]
[White "Khnykin_Nikolay"]
[Black "jovencata"]
[Result "1-0"]
[WhiteElo "2056"]
[BlackElo "2160"]
[TimeControl "180+1"]
[EndTime "11:08:53 PST"]
[Termination "Khnykin_Nikolay won by resignation"]

1. d4 {[%clk 0:03:00.9]} 1... a6 {[%clk 0:03:00]} 2. Nc3 {[%clk 0:02:58.8]} 2...
b5 {[%clk 0:03:00.9]} 3. a3 {[%clk 0:02:55.8]} 3... Bb7 {[%clk 0:03:01.8]} 4.
Bf4 {[%clk 0:02:50.8]} 4... Nf6 {[%clk 0:02:59.9]} 5. e3 {[%clk 0:02:49.5]} 5...
e5 {[%clk 0:02:59.1]} 6. Bxe5 {[%clk 0:02:44.1]} 6... d6 {[%clk 0:02:57.6]} 7.
Bf4 {[%clk 0:02:39.8]} 7... Be7 {[%clk 0:02:55.7]} 8. Nf3 {[%clk 0:02:37.5]}
8... Nbd7 {[%clk 0:02:55.7]} 9. Be2 {[%clk 0:02:33.8]} 9... O-O {[%clk
0:02:49.6]} 10. Qd2 {[%clk 0:02:23.5]} 10... c5 {[%clk 0:02:43.3]} 11. O-O-O
{[%clk 0:02:18.2]} 11... b4 {[%clk 0:02:42.6]} 12. Nb1 {[%clk 0:02:16.4]} 12...
Ne4 {[%clk 0:02:29.5]} 13. Qe1 {[%clk 0:02:12.8]} 13... b3 {[%clk 0:02:00.5]}
14. c3 {[%clk 0:02:08.2]} 14... d5 {[%clk 0:01:53.8]} 15. Nfd2 {[%clk
0:01:51.1]} 15... Nxd2 {[%clk 0:01:43.5]} 16. Qxd2 {[%clk 0:01:49.8]} 16... c4
{[%clk 0:01:44.4]} 17. Bf3 {[%clk 0:01:45.9]} 17... Nf6 {[%clk 0:01:42.6]} 18.
Qe2 {[%clk 0:01:41.8]} 18... Re8 {[%clk 0:01:41.5]} 19. Nd2 {[%clk 0:01:39.9]}
19... Qa5 {[%clk 0:01:38.9]} 20. Nb1 {[%clk 0:01:34.5]} 20... h6 {[%clk
0:01:27.8]} 21. h4 {[%clk 0:01:31.6]} 21... Bc8 {[%clk 0:01:17.1]} 22. g4 {[%clk
0:01:29]} 22... Be6 {[%clk 0:00:43.4]} 23. g5 {[%clk 0:01:25.6]} 23... hxg5
{[%clk 0:00:44.3]} 24. hxg5 {[%clk 0:01:24.9]} 24... Ne4 {[%clk 0:00:43.7]} 25.
Bxe4 {[%clk 0:01:23.7]} 25... dxe4 {[%clk 0:00:44]} 26. Qh5 {[%clk 0:01:14.8]}
1-0

[Event "*** Titled Tuesday Blitz"]
[Site "Chess.com"]
[Date "2021.03.09"]
[Round "6"]
[White "Skatchkov_V"]
[Black "bazar-wokzal"]
[Result "1-0"]
[WhiteElo "2623"]
[BlackElo "2475"]
[TimeControl "180+1"]
[EndTime "11:08:56 PST"]
[Termination "Skatchkov_V won by checkmate"]

1. c4 {[%clk 0:02:59.6]} 1... f5 {[%clk 0:02:59.2]} 2. e3 {[%clk 0:02:57.3]}
2... Nf6 {[%clk 0:02:54.7]} 3. Nf3 {[%clk 0:02:57.7]} 3... d6 {[%clk 0:02:53.5]}
4. d4 {[%clk 0:02:57.8]} 4... g6 {[%clk 0:02:53.3]} 5. b4 {[%clk 0:02:57.8]}
5... Bg7 {[%clk 0:02:53.2]} 6. Bb2 {[%clk 0:02:58.1]} 6... O-O {[%clk
0:02:53.2]} 7. Nbd2 {[%clk 0:02:56.9]} 7... Qe8 {[%clk 0:02:41.3]} 8. d5 {[%clk
0:02:50.7]} 8... c6 {[%clk 0:02:40.9]} 9. Qb3 {[%clk 0:02:47.3]} 9... cxd5
{[%clk 0:02:38.5]} 10. cxd5 {[%clk 0:02:48.2]} 10... Nbd7 {[%clk 0:02:32.1]} 11.
a4 {[%clk 0:02:33.3]} 11... a5 {[%clk 0:02:28.2]} 12. bxa5 {[%clk 0:02:13.8]}
12... Rxa5 {[%clk 0:02:27.6]} 13. Bb5 {[%clk 0:02:11.5]} 13... Kh8 {[%clk
0:02:24.3]} 14. O-O {[%clk 0:02:10.6]} 14... Ra8 {[%clk 0:02:07.3]} 15. Bd4
{[%clk 0:01:49.4]} 15... h6 {[%clk 0:01:54.3]} 16. Rac1 {[%clk 0:01:43.7]} 16...
Qf7 {[%clk 0:01:53.3]} 17. Rc7 {[%clk 0:01:40.8]} 17... g5 {[%clk 0:01:35.2]}
18. Rfc1 {[%clk 0:01:22]} 18... g4 {[%clk 0:01:28.1]} 19. Nh4 {[%clk 0:01:22]}
19... Ne5 {[%clk 0:01:25.4]} 20. Bxe5 {[%clk 0:01:20.5]} 20... dxe5 {[%clk
0:01:25.2]} 21. Rxe7 {[%clk 0:01:20.9]} 21... Qh5 {[%clk 0:01:18.7]} 22. g3
{[%clk 0:01:19.4]} 22... f4 {[%clk 0:01:16.2]} 23. Rcc7 {[%clk 0:01:14.4]} 23...
Rg8 {[%clk 0:01:02.6]} 24. exf4 {[%clk 0:01:10.7]} 24... exf4 {[%clk 0:01:02.4]}
25. Qd3 {[%clk 0:01:10.4]} 25... Qxd5 {[%clk 0:00:47]} 26. Ng6+ {[%clk
0:01:07.1]} 26... Kh7 {[%clk 0:00:46.9]} 27. Nf8+ {[%clk 0:01:07.8]} 27... Kh8
{[%clk 0:00:47]} 28. Qh7+ {[%clk 0:01:08.5]} 28... Nxh7 {[%clk 0:00:46.4]} 29.
Ng6# {[%clk 0:01:09.4]} 1-0